fUSD/lending_fUSD_20250629
["ID","MTS","AMOUNT","RATE_DAILY","PERIOD"]
[368489922,1751190728858,-3862.63,0.00029589,3]
[368489923,1751190728869,-1943.16,0.00029589,3]
[368489924,1751190728878,-600.0,0.00029589,3]
[368489925,1751190728888,-698.11,0.00029589,3]
[368489926,1751190728898,-434.89,0.00029589,3]
[368489927,1751190728909,-826.74,0.00029589,3]
[368489928,1751190728919,-490.0,0.00029589,3]
[368489929,1751190728929,-490.0,0.00029589,3]
[368489930,1751190728939,-600.0,0.00029589,3]
[368489931,1751190728949,-490.0,0.00029589,3]
[368489932,1751190728958,-4122.27,0.00029589,3]
[368489933,1751190728972,-490.0,0.00029589,3]
[368489934,1751190728982,-600.0,0.00029589,3]
[368489935,1751190728992,-490.0,0.00029589,3]
[368489936,1751190729002,-600.0,0.00029589,3]
[368489937,1751190729012,-4529.09,0.00029589,3]
[368489938,1751190729022,-434.89,0.00029589,3]
[368489939,1751190729032,-490.0,0.00029589,3]
[368489940,1751190729041,-490.0,0.00029589,3]
[368489941,1751190729051,-600.0,0.00029589,3]
[368489942,1751190729060,-1385.92,0.00029589,3]
[368489943,1751190729070,-330.34287351,0.00029589,3]
[368489944,1751190729079,-600.0,0.00029589,3]
[368489945,1751190729089,-1552.69,0.00029589,3]
[368489946,1751190729098,-600.0,0.00029589,3]
[368489947,1751190729109,-5320.1,0.00029589,3]
[368489948,1751190729118,-434.89,0.00029589,3]
[368489949,1751190729128,-490.0,0.00029589,3]
[368489950,1751190729138,-2723.89,0.00029589,3]
[368489951,1751190729148,-620.43,0.00029589,3]
[368489952,1751190729158,-600.0,0.00029589,3]
[368489953,1751190729167,-1307.14,0.00029589,3]
[368489954,1751190729177,-2896.25,0.00029589,3]
[368489955,1751190729187,-2347.57,0.00029589,3]
[368489956,1751190729196,-919.31,0.00029589,3]
[368489957,1751190729205,-600.0,0.00029589,3]
[368489958,1751190729215,-1874.39,0.00029589,3]
[368489959,1751190729225,-2024.74,0.00029589,3]
[368489960,1751190729234,-442.68561367,0.00029589,3]
[368489961,1751190729243,-5682.59,0.00029589,3]
[368489962,1751190729253,-600.0,0.00029589,3]
[368489963,1751190729262,-434.89,0.00029589,3]
[368489964,1751190729271,-490.0,0.00029589,3]
[368489965,1751190729280,-490.0,0.00029589,3]
[368489966,1751190729290,-600.0,0.00029589,3]
[368489967,1751190729299,-490.0,0.00029589,3]
[368489968,1751190729308,-600.0,0.00029589,3]
[368489969,1751190729317,-2104.31,0.00029589,3]
[368489970,1751190729327,-626.13,0.00029589,3]
[368489971,1751190729336,-1968.64,0.00029589,3]
[368489972,1751190729346,-2133.2,0.00029589,3]
[368489973,1751190729355,-490.0,0.00029589,3]
[368489974,1751190729365,-490.0,0.00029589,3]
[368489975,1751190729374,-1770.11,0.00029589,3]
[368489976,1751190729383,-1764.06,0.00029589,3]
[368489977,1751190729393,-600.0,0.00029589,3]
[368489978,1751190729402,-490.0,0.00029589,3]
[368489979,1751190729414,-434.89,0.00029589,3]
[368489980,1751190729424,-700.52,0.00029589,3]
[368489981,1751190729434,-490.0,0.00029589,3]
[368489982,1751190729443,-1730.13,0.00029589,3]
[368489983,1751190729452,-2165.68,0.00029589,3]
[368489984,1751190729463,-600.0,0.00029589,3]
[368489985,1751190729472,-883.4,0.00029589,3]
[368489986,1751190729482,-600.0,0.00029589,3]
[368489987,1751190729492,-513.72,0.00029589,3]
[368489988,1751190729502,-1926.75,0.00029589,3]
[368489989,1751190729511,-5921.12,0.00029589,3]
[368489990,1751190729520,-600.0,0.00029589,3]
[368489991,1751190729530,-490.0,0.00029589,3]
[368489992,1751190729539,-490.0,0.00029589,3]
[368489993,1751190729548,-2141.99,0.00029589,3]
[368489994,1751190729557,-2043.04,0.00029589,3]
[368489995,1751190729578,-490.0,0.00029589,3]
[368489996,1751190729593,-631.01,0.00029589,3]
[368489997,1751190729615,-855.58,0.00029589,3]
[368489998,1751190729634,-1625.9,0.00029589,3]
[368489999,1751190729654,-696.89,0.00029589,3]
[368490000,1751190729674,-3241.41,0.00029589,3]
[368490001,1751190729695,-3866.16,0.00029589,3]
[368490002,1751190729715,-4543.11,0.00029589,3]
[368490003,1751190729734,-2087.25,0.00029589,3]
[368490004,1751190729753,-569.82,0.00029589,3]
[368490005,1751190729777,-1891.34,0.00029589,3]
[368490006,1751190729793,-490.0,0.00029589,3]
[368490007,1751190729812,-1931.12,0.00029589,3]
[368490008,1751190729827,-490.0,0.00029589,3]
[368490009,1751190729846,-490.0,0.00029589,3]
[368490010,1751190729860,-551.46786369,0.00029589,2]
[368490011,1751190729884,-1948.57,0.00029589,3]
[368490012,1751190729903,-1323.16,0.00029589,3]
[368490013,1751190729923,-971.22,0.00029589,3]
[368490014,1751190729942,-6890.33,0.00029589,3]
[368490015,1751190729961,-961.28,0.00029589,3]
[368490016,1751190729981,-490.0,0.00029589,3]
[368490017,1751190729999,-1740.09,0.00029589,3]
[368490018,1751190730017,-1509.17,0.00029589,3]
[368490019,1751190730035,-2526.68,0.00029589,3]
[368490020,1751190730051,-490.0,0.00029589,3]
[368490021,1751190730069,-1923.32,0.00029589,3]
[368490022,1751190730085,-490.0,0.00029589,3]
[368490023,1751190730100,-1194.57,0.00029589,3]
[368490024,1751190730116,-387.7866947,0.00029589,2]
[368490025,1751190730132,-2043.46130184,0.0002959,21]
[368490026,1751190730148,-168.0,0.00029599,2]
[368490027,1751190730164,-171.22915612,0.00029626,2]
[368490028,1751190730180,-25708.31185902,0.00029626,2]
[368490029,1751190730196,-401.34,0.000297,2]
[368490030,1751190730211,-600.0,0.000297,3]
[368490031,1751190730228,-600.0,0.000297,3]
[368490032,1751190730244,-600.0,0.000297,3]
[368490033,1751190730259,-434.89,0.000297,3]
[368490034,1751190730274,-600.0,0.000297,3]
[368490035,1751190730289,-600.0,0.000297,3]
[368490037,1751190730304,-600.0,0.000297,3]
[368490038,1751190730319,-434.89,0.000297,3]
[368490039,1751190730334,-600.0,0.000297,3]
[368490040,1751190730349,-600.0,0.000297,3]
[368490041,1751190730365,-600.0,0.000297,3]
[368490042,1751190730380,-434.89,0.000297,3]
[368490043,1751190730395,-600.0,0.000297,3]
[368490044,1751190730411,-600.0,0.000297,3]
[368490045,1751190730427,-600.0,0.000297,3]
[368490046,1751190730442,-434.89,0.000297,3]
[368490047,1751190730457,-600.0,0.000297,3]
[368490048,1751190730473,-233.62934222,0.00029763,2]
[368490049,1751190730487,-2043.46130184,0.00029797,21]
[368490050,1751190730502,-303.98420713,0.00029808,2]
[368490051,1751190730517,-600.0,0.00029808,3]
[368490052,1751190730531,-600.0,0.00029808,3]
[368490053,1751190730546,-600.0,0.00029808,3]
[368490054,1751190730560,-600.0,0.00029808,3]
[368490055,1751190730574,-1000.0,0.00029847,2]
[368490056,1751190730590,-381.4631418,0.0002986,2]
[368490057,1751190730604,-12532.6955272,0.0002986,2]
[368490058,1751190730619,-79514.2078834,0.0002986,2]
[368490059,1751190730634,-600.0,0.00029862,7]
[368490060,1751190730648,-490.0,0.00029862,3]
[368490061,1751190730662,-590.68,0.00029862,3]
[368490062,1751190730676,-802.0,0.00029863,3]
[368490063,1751190730691,-500.0,0.00029863,3]
[368490064,1751190730706,-500.0,0.00029863,3]
[368490065,1751190730720,-500.0,0.00029863,3]
[368490066,1751190730735,-500.0,0.00029863,3]
[368490067,1751190730749,-453.0,0.00029863,3]
[368490068,1751190730764,-600.46,0.00029863,3]
[368490069,1751190730778,-490.0,0.00029863,3]
[368490070,1751190730792,-490.0,0.00029863,3]
[368490071,1751190730806,-737.29,0.00029863,3]
[368490072,1751190730821,-737.29,0.00029863,3]
[368490073,1751190730835,-542.33,0.00029863,3]
[368490074,1751190730849,-847.37,0.00029863,3]
[368490075,1751190730864,-490.0,0.00029863,3]
[368490076,1751190730879,-490.0,0.00029863,3]
[368490077,1751190730893,-490.0,0.00029863,3]
[368490078,1751190730907,-490.0,0.00029863,3]
[368490079,1751190730922,-490.0,0.00029863,3]
[368490080,1751190730936,-948.9,0.00029863,3]
[368490081,1751190730950,-667.1,0.00029863,3]
[368490082,1751190730964,-513.09,0.00029863,3]
[368490083,1751190730979,-978.74,0.00029863,3]
[368490084,1751190730995,-642.29,0.00029863,3]
[368490085,1751190731009,-490.0,0.00029863,3]
[368490086,1751190731023,-490.0,0.00029863,3]
[368490087,1751190731037,-490.0,0.00029863,3]
[368490088,1751190731052,-1186.44,0.00029863,3]
[368490089,1751190731065,-490.0,0.00029863,3]
[368490090,1751190731080,-490.0,0.00029863,3]
[368490091,1751190731093,-2554.302964,0.00029863,3]
[368490092,1751190731108,-490.0,0.00029863,3]
[368490093,1751190731122,-853.16,0.00029863,3]
[368490094,1751190731137,-490.0,0.00029863,3]
[368490095,1751190731152,-2816.157543,0.00029863,3]
[368490096,1751190731167,-490.0,0.00029863,3]
[368490097,1751190731181,-490.0,0.00029863,3]
[368490098,1751190731196,-342.16429556,0.00029863,3]
[368490099,1751190731210,-2200.380726,0.00029863,3]
[368490100,1751190731225,-490.0,0.00029863,3]
[368490101,1751190731239,-151.959343,0.00029863,3]
[368490102,1751190731253,-392.680419,0.00029863,3]
[368490103,1751190731267,-500.85,0.00029863,3]
[368490104,1751190731283,-490.0,0.00029863,3]
[368490105,1751190731297,-887.72,0.00029863,3]
[368490106,1751190731311,-490.0,0.00029863,3]
[368490107,1751190731325,-186.08598005,0.00029863,3]
[368490108,1751190731340,-153.102854,0.00029863,3]
[368490109,1751190731354,-556.18,0.00029863,3]
[368490110,1751190731369,-656.47,0.00029863,3]
[368490111,1751190731389,-571.97,0.00029863,3]
[368490112,1751190731403,-490.0,0.00029863,3]
[368490113,1751190731422,-490.0,0.00029863,3]
[368490114,1751190731437,-858.42,0.00029863,3]
[368490115,1751190731451,-648.74,0.00029863,3]
[368490116,1751190731466,-490.0,0.00029863,3]
[368490117,1751190731482,-1167.71,0.00029863,3]
[368490118,1751190731497,-490.0,0.00029863,3]
[368490119,1751190731511,-167.777922,0.00029863,3]
[368490120,1751190731525,-642.42,0.00029863,3]
[368490121,1751190731539,-490.0,0.00029863,3]
[368490122,1751190731554,-490.0,0.00029863,3]
[368490123,1751190731568,-523.68,0.00029863,3]
[368490124,1751190731583,-490.0,0.00029863,3]
[368490125,1751190731596,-490.0,0.00029863,3]
[368490126,1751190731610,-490.0,0.00029863,3]
[368490127,1751190731624,-625.75,0.00029863,3]
[368490128,1751190731638,-490.0,0.00029863,3]
[368490129,1751190731651,-490.0,0.00029863,3]
[368490130,1751190731665,-490.0,0.00029863,3]
[368490131,1751190731678,-490.0,0.00029863,3]
[368490132,1751190731694,-500.89037107,0.00029863,3]
[368490133,1751190731708,-1529.36,0.00029863,3]
[368490134,1751190731723,-490.0,0.00029863,3]
[368490135,1751190731737,-490.0,0.00029863,3]
[368490136,1751190731751,-490.0,0.00029863,3]
[368490137,1751190731767,-725.47,0.00029863,3]
[368490138,1751190731782,-167.777922,0.00029863,3]
[368490139,1751190731797,-490.0,0.00029863,3]
[368490140,1751190731812,-490.0,0.00029863,3]
[368490141,1751190731826,-490.0,0.00029863,3]
[368490142,1751190731840,-490.0,0.00029863,3]
[368490143,1751190731854,-1837.93,0.00029863,3]
[368490144,1751190731868,-490.0,0.00029863,3]
[368490145,1751190731882,-490.0,0.00029863,3]
[368490146,1751190731897,-961.81,0.00029863,3]
[368490147,1751190731911,-677.59,0.00029863,3]
[368490148,1751190731926,-490.0,0.00029863,3]
[368490149,1751190731942,-490.0,0.00029863,3]
[368490150,1751190731957,-811.6,0.00029863,3]
[368490151,1751190731973,-490.0,0.00029863,3]
[368490152,1751190731987,-701.76,0.00029863,3]
[368490153,1751190732001,-801.55,0.00029863,3]
[368490154,1751190732016,-490.0,0.00029863,3]
[368490155,1751190732030,-493.56,0.00029863,3]
[368490156,1751190732045,-490.0,0.00029863,3]
[368490157,1751190732379,-490.0,0.00029863,3]
[368490158,1751190732391,-490.0,0.00029863,3]
[368490159,1751190732401,-490.0,0.00029863,3]
[368490160,1751190732413,-490.0,0.00029863,3]
[368490161,1751190732422,-930.82,0.00029863,3]
[368490162,1751190732432,-740.41,0.00029863,3]
[368490163,1751190732441,-1134.82,0.00029863,3]
[368490164,1751190732450,-629.08,0.00029863,3]
[368490165,1751190732461,-507.56,0.00029863,3]
[368490166,1751190732471,-490.0,0.00029863,3]
[368490167,1751190732481,-508.09,0.00029863,3]
[368490168,1751190732491,-1395.58,0.00029863,3]
[368490169,1751190732501,-596.83,0.00029863,3]
[368490170,1751190732510,-516.57,0.00029863,3]
[368490171,1751190732519,-1527.96,0.00029863,3]
[368490172,1751190732529,-2015.14,0.00029863,3]
[368490173,1751190732538,-490.0,0.00029863,3]
[368490174,1751190732547,-615.0,0.00029863,3]
[368490175,1751190732557,-490.0,0.00029863,3]
[368490176,1751190732566,-490.0,0.00029863,3]
[368490177,1751190732575,-889.47,0.00029863,3]
[368490178,1751190732585,-2302.9,0.00029863,3]
[368490179,1751190732594,-490.0,0.00029863,3]
[368490180,1751190732605,-559.25078083,0.00029863,3]
[368490181,1751190732614,-490.0,0.00029863,3]
[368490182,1751190732624,-945.27,0.00029863,3]
[368490183,1751190732633,-743.01,0.00029863,3]
[368490184,1751190732643,-643.27,0.00029863,3]
[368490185,1751190732652,-490.0,0.00029863,3]
[368490186,1751190732661,-1940.61,0.00029863,3]
[368490187,1751190732671,-1952.95,0.00029863,3]
[368490188,1751190732680,-1310.06,0.00029863,3]
[368490189,1751190732689,-1201.96,0.00029863,3]
[368490190,1751190732698,-369.84,0.00029863,3]
[368490191,1751190732708,-490.0,0.00029863,3]
[368490192,1751190732717,-1125.22,0.00029863,3]
[368490193,1751190732727,-1224.35,0.00029863,3]
[368490194,1751190732735,-490.0,0.00029863,3]
[368490195,1751190732744,-976.06,0.00029863,3]
[368490196,1751190732754,-728.8,0.00029863,3]
[368490197,1751190732763,-749.58,0.00029863,3]
[368490198,1751190732773,-957.88,0.00029863,3]
[368490199,1751190732782,-1824.88,0.00029863,3]
[368490200,1751190732791,-490.0,0.00029863,3]
[368490201,1751190732800,-603.75,0.00029863,3]
[368490202,1751190732809,-490.0,0.00029863,3]
[368490203,1751190732818,-490.0,0.00029863,3]
[368490204,1751190732827,-490.0,0.00029863,3]
[368490205,1751190732837,-538.77,0.00029863,3]
[368490206,1751190732847,-776.78,0.00029863,3]
[368490207,1751190732856,-960.82,0.00029863,3]
[368490208,1751190732866,-894.84,0.00029863,3]
[368490209,1751190732875,-490.0,0.00029863,3]
[368490210,1751190732884,-490.0,0.00029863,3]
[368490211,1751190732893,-490.0,0.00029863,3]
[368490212,1751190732903,-1904.77,0.00029863,3]
[368490213,1751190732912,-490.0,0.00029863,3]
[368490214,1751190732922,-1462.39,0.00029863,3]
[368490215,1751190732931,-490.0,0.00029863,3]
[368490216,1751190732941,-2300.89,0.00029863,3]
[368490217,1751190732951,-490.0,0.00029863,3]
[368490218,1751190732960,-694.52,0.00029863,3]
[368490219,1751190732970,-650.78,0.00029863,3]
[368490220,1751190732980,-2228.41,0.00029863,3]
[368490221,1751190732989,-490.0,0.00029863,3]
[368490222,1751190732999,-490.0,0.00029863,3]
[368490223,1751190733008,-1649.19,0.00029863,3]
[368490224,1751190733018,-490.0,0.00029863,3]
[368490225,1751190733028,-2026.94,0.00029863,3]
[368490226,1751190733038,-490.0,0.00029863,3]
[368490227,1751190733047,-843.7,0.00029863,3]
[368490228,1751190733057,-490.0,0.00029863,3]
[368490229,1751190733066,-490.0,0.00029863,3]
[368490230,1751190733076,-490.0,0.00029863,3]
[368490231,1751190733085,-490.0,0.00029863,3]
[368490232,1751190733096,-571.61,0.00029863,3]
[368490233,1751190733105,-1556.08,0.00029863,3]
[368490234,1751190733115,-490.0,0.00029863,3]
[368490235,1751190733125,-896.97,0.00029863,3]
[368490236,1751190733134,-490.0,0.00029863,3]
[368490237,1751190733143,-594.67,0.00029863,3]
[368490238,1751190733153,-1147.84,0.00029863,3]
[368490239,1751190733162,-1027.62,0.00029863,3]
[368490240,1751190733171,-707.16,0.00029863,3]
[368490241,1751190733181,-792.35,0.00029863,3]
[368490242,1751190733190,-880.72,0.00029863,3]
[368490243,1751190733200,-356.52957797,0.00029863,3]
[368490244,1751190733209,-490.0,0.00029863,3]
[368490245,1751190733219,-490.0,0.00029863,3]
[368490246,1751190733228,-490.0,0.00029863,3]
[368490247,1751190733238,-780.47,0.00029863,3]
[368490248,1751190733247,-490.0,0.00029863,3]
[368490249,1751190733257,-560.33,0.00029863,3]
[368490250,1751190733266,-525.19,0.00029863,3]
[368490251,1751190733276,-944.59,0.00029863,3]
[368490252,1751190733285,-490.0,0.00029863,3]
[368490253,1751190733294,-1653.81,0.00029863,3]
[368490254,1751190733304,-512.15690266,0.00029863,3]
[368490255,1751190733313,-1620.77,0.00029863,3]
[368490256,1751190733323,-1900.77,0.00029863,3]
[368490257,1751190733334,-490.0,0.00029863,3]
[368490258,1751190733343,-490.0,0.00029863,3]
[368490259,1751190733353,-521.24,0.00029863,3]
[368490260,1751190733364,-1487.61,0.00029863,3]
[368490261,1751190733374,-1556.78,0.00029863,3]
[368490262,1751190733385,-1633.03,0.00029863,3]
[368490263,1751190733396,-1046.71,0.00029863,3]
[368490264,1751190733406,-506.3,0.00029863,3]
[368490265,1751190733418,-514.5,0.00029863,3]
[368490266,1751190733428,-1936.24,0.00029863,3]
[368490267,1751190733437,-490.0,0.00029863,3]
[368490268,1751190733446,-2262.43,0.00029863,3]
[368490269,1751190733456,-665.95,0.00029863,3]
[368490270,1751190733465,-2474.6,0.00029863,3]
[368490271,1751190733475,-1268.88,0.00029863,3]
[368490272,1751190733484,-490.0,0.00029863,3]
[368490273,1751190733494,-689.16,0.00029863,3]
[368490274,1751190733504,-858.86,0.00029863,3]
[368490275,1751190733514,-1400.07,0.00029863,3]
[368490276,1751190733523,-490.0,0.00029863,3]
[368490277,1751190733533,-490.0,0.00029863,3]
[368490278,1751190733542,-730.59,0.00029863,3]
[368490279,1751190733551,-666.33,0.00029863,3]
[368490280,1751190733560,-1700.28,0.00029863,3]
[368490281,1751190733569,-818.45,0.00029863,3]
[368490282,1751190733579,-1024.15,0.00029863,3]
[368490283,1751190733588,-709.17,0.00029863,3]
[368490284,1751190733597,-2038.87,0.00029863,3]
[368490285,1751190733606,-1027.52,0.00029863,3]
[368490286,1751190733616,-490.0,0.00029863,3]
[368490287,1751190733626,-534.02,0.00029863,3]
[368490288,1751190733635,-2394.84,0.00029863,3]
[368490289,1751190733645,-490.0,0.00029863,3]
[368490290,1751190733654,-1561.51,0.00029863,3]
[368490291,1751190733663,-490.0,0.00029863,3]
[368490292,1751190733672,-1167.05,0.00029863,3]
[368490293,1751190733681,-899.19,0.00029863,3]
[368490294,1751190733692,-935.31,0.00029863,3]
[368490295,1751190733702,-771.06,0.00029863,3]
[368490296,1751190733711,-610.33,0.00029863,3]
[368490297,1751190733721,-490.0,0.00029863,3]
[368490298,1751190733730,-715.86,0.00029863,3]
[368490299,1751190733740,-1503.84,0.00029863,3]
[368490300,1751190733750,-1626.28,0.00029863,3]
[368490301,1751190733760,-566.4,0.00029863,3]
[368490302,1751190733769,-490.0,0.00029863,3]
[368490303,1751190733779,-934.93,0.00029863,3]
[368490304,1751190733788,-516.29,0.00029863,3]
[368490305,1751190733797,-589.35,0.00029863,3]
[368490307,1751190733807,-2211.02,0.00029863,3]
[368490308,1751190733816,-1313.26,0.00029863,3]
[368490309,1751190733827,-878.98,0.00029863,3]
[368490310,1751190733837,-2018.3,0.00029863,3]
[368490311,1751190733846,-1272.1,0.00029863,3]
[368490312,1751190733855,-1320.46,0.00029863,3]
[368490313,1751190733865,-2254.95,0.00029863,3]
[368490314,1751190733874,-490.0,0.00029863,3]
[368490315,1751190733884,-490.0,0.00029863,3]
[368490316,1751190733894,-801.49,0.00029863,3]
[368490317,1751190733904,-793.92,0.00029863,3]
[368490318,1751190733913,-1409.04,0.00029863,3]
[368490319,1751190733923,-566.98,0.00029863,3]
[368490320,1751190733932,-855.39,0.00029863,3]
[368490321,1751190733942,-520.23,0.00029863,3]
[368490322,1751190733952,-503.31,0.00029863,3]
[368490323,1751190733961,-1383.19,0.00029863,3]
[368490324,1751190733970,-490.0,0.00029863,3]
[368490325,1751190733980,-490.0,0.00029863,3]
[368490326,1751190733990,-490.0,0.00029863,3]
[368490327,1751190733999,-907.17,0.00029863,3]
[368490328,1751190734009,-1733.55,0.00029863,3]
[368490329,1751190734019,-1411.93,0.00029863,3]
[368490330,1751190734028,-490.0,0.00029863,3]
[368490331,1751190734037,-490.0,0.00029863,3]
[368490332,1751190734046,-1161.29,0.00029863,3]
[368490333,1751190734056,-490.0,0.00029863,3]
[368490334,1751190734066,-490.0,0.00029863,3]
[368490335,1751190734075,-648.19,0.00029863,3]
[368490336,1751190734085,-490.0,0.00029863,3]
[368490337,1751190734094,-664.2,0.00029863,3]
[368490338,1751190734103,-492.59,0.00029863,3]
[368490339,1751190734112,-1411.98,0.00029863,3]
[368490340,1751190734121,-490.0,0.00029863,3]
[368490341,1751190734131,-1476.05,0.00029863,3]
[368490342,1751190734140,-490.0,0.00029863,3]
[368490343,1751190734150,-490.0,0.00029863,3]
[368490344,1751190734160,-490.0,0.00029863,3]
[368490345,1751190734170,-490.0,0.00029863,3]
[368490346,1751190734179,-2483.68,0.00029863,3]
[368490347,1751190734189,-1539.15,0.00029863,3]
[368490348,1751190734199,-622.78,0.00029863,3]
[368490349,1751190734208,-2320.44,0.00029863,3]
[368490350,1751190734218,-490.0,0.00029863,3]
[368490351,1751190734227,-894.95,0.00029863,3]
[368490352,1751190734237,-701.41,0.00029863,3]
[368490353,1751190734247,-526.1,0.00029863,3]
[368490354,1751190734257,-1005.08,0.00029863,3]
[368490355,1751190734266,-490.0,0.00029863,3]
[368490356,1751190734276,-1032.78,0.00029863,3]
[368490357,1751190734285,-1199.97,0.00029863,3]
[368490358,1751190734295,-549.61,0.00029863,3]
[368490359,1751190734304,-1283.76,0.00029863,3]
[368490360,1751190734313,-490.0,0.00029863,3]
[368490361,1751190734323,-490.0,0.00029863,3]
[368490362,1751190734331,-901.15,0.00029863,3]
[368490363,1751190734341,-545.6,0.00029863,3]
[368490364,1751190734350,-841.45,0.00029863,3]
[368490365,1751190734358,-525.0,0.00029863,3]
[368490366,1751190734368,-908.9,0.00029863,3]
[368490367,1751190734376,-1956.7,0.00029863,3]
[368490368,1751190734385,-490.0,0.00029863,3]
[368490369,1751190734395,-1559.17,0.00029863,3]
[368490370,1751190734404,-490.0,0.00029863,3]
[368490371,1751190734416,-772.36,0.00029863,3]
[368490372,1751190734426,-1731.31,0.00029863,3]
[368490373,1751190734435,-490.0,0.00029863,3]
[368490374,1751190734445,-181.36,0.00029863,3]
[368490375,1751190734455,-1241.41,0.00029863,3]
[368490376,1751190734464,-490.0,0.00029863,3]
[368490377,1751190734474,-2257.75,0.00029863,3]
[368490378,1751190734483,-1736.54,0.00029863,3]
[368490379,1751190734492,-613.43,0.00029863,3]
[368490380,1751190734501,-2325.03,0.00029863,3]
[368490381,1751190734511,-1117.78,0.00029863,3]
[368490382,1751190734520,-1022.6,0.00029863,3]
[368490383,1751190734529,-896.69,0.00029863,3]
[368490384,1751190734539,-998.0,0.00029863,3]
[368490385,1751190734549,-490.0,0.00029863,3]
[368490386,1751190734558,-1382.19,0.00029863,3]
[368490387,1751190734567,-490.0,0.00029863,3]
[368490388,1751190734577,-1087.69,0.00029863,3]
[368490389,1751190734586,-937.32,0.00029863,3]
[368490390,1751190734595,-490.0,0.00029863,3]
[368490391,1751190734605,-490.0,0.00029863,3]
[368490392,1751190734614,-490.0,0.00029863,3]
[368490393,1751190734624,-490.0,0.00029863,3]
[368490394,1751190734634,-490.0,0.00029863,3]
[368490395,1751190734643,-2003.29,0.00029863,3]
[368490396,1751190734654,-1073.82,0.00029863,3]
[368490397,1751190734663,-1428.66,0.00029863,3]
[368490398,1751190734673,-490.0,0.00029863,3]
[368490399,1751190734683,-906.56,0.00029863,3]
[368490400,1751190734692,-490.0,0.00029863,3]
[368490401,1751190734703,-751.94,0.00029863,3]
[368490402,1751190734713,-1284.2,0.00029863,3]
[368490403,1751190734724,-995.73,0.00029863,3]
[368490404,1751190734734,-730.89,0.00029863,3]
[368490405,1751190734743,-490.0,0.00029863,3]
[368490406,1751190734754,-490.0,0.00029863,3]
[368490407,1751190734764,-490.0,0.00029863,3]
[368490408,1751190734773,-490.0,0.00029863,3]
[368490409,1751190734783,-490.0,0.00029863,3]
[368490410,1751190734792,-490.0,0.00029863,3]
[368490411,1751190734802,-490.0,0.00029863,3]
[368490412,1751190734811,-490.0,0.00029863,3]
[368490413,1751190734820,-3819.49,0.00029863,3]
[368490414,1751190734830,-614.58,0.00029863,3]
[368490415,1751190734840,-2099.43,0.00029863,3]
[368490416,1751190734850,-591.09,0.00029863,3]
[368490417,1751190734859,-490.0,0.00029863,3]
[368490418,1751190734869,-490.0,0.00029863,3]
[368490419,1751190734879,-930.34,0.00029863,3]
[368490420,1751190734888,-1763.09,0.00029863,3]
[368490421,1751190734898,-1553.22,0.00029863,3]
[368490422,1751190734907,-587.32,0.00029863,3]
[368490423,1751190734918,-1288.37,0.00029863,3]